[Event "*** Titled Tuesday Blitz"]
[Site "Chess.com"]
[Date "2020.05.05"]
[Round "10"]
[White "Ladislav1969"]
[Black "LizaSolovyova"]
[Result "0-1"]
[WhiteElo "2350"]
[BlackElo "2535"]
[TimeControl "180+1"]
[EndTime "11:56:43 PDT"]
[Termination "LizaSolovyova won by resignation"]

1. e4 {[%clk 0:03:00.9]} 1... e5 {[%clk 0:03:00]} 2. Bc4 {[%clk 0:02:59.7]} 2...
d6 {[%clk 0:03:00.5]} 3. Nc3 {[%clk 0:02:58.9]} 3... c6 {[%clk 0:03:00.5]} 4.
Nf3 {[%clk 0:02:57.3]} 4... h6 {[%clk 0:03:00]} 5. d4 {[%clk 0:02:57.2]} 5...
Qe7 {[%clk 0:03:00]} 6. O-O {[%clk 0:02:56.1]} 6... Nf6 {[%clk 0:02:58]} 7. Re1
{[%clk 0:02:53.7]} 7... Qc7 {[%clk 0:02:56.6]} 8. a4 {[%clk 0:02:46.6]} 8... a5
{[%clk 0:02:55.7]} 9. b3 {[%clk 0:02:44.3]} 9... Bg4 {[%clk 0:02:54]} 10. dxe5
{[%clk 0:02:38.5]} 10... dxe5 {[%clk 0:02:53.9]} 11. h3 {[%clk 0:02:37.7]} 11...
Bh5 {[%clk 0:02:52.8]} 12. g4 {[%clk 0:02:27.4]} 12... Bg6 {[%clk 0:02:52.1]}
13. Nh4 {[%clk 0:02:27.3]} 13... Nbd7 {[%clk 0:02:51.6]} 14. Nxg6 {[%clk
0:02:24]} 14... fxg6 {[%clk 0:02:52.5]} 15. Qe2 {[%clk 0:02:03.9]} 15... O-O-O
{[%clk 0:02:52.1]} 16. Be6 {[%clk 0:01:58.5]} 16... Bb4 {[%clk 0:02:51.8]} 17.
Bd2 {[%clk 0:01:54.8]} 17... Kb8 {[%clk 0:02:52]} 18. Nb1 {[%clk 0:01:46.5]}
18... Nc5 {[%clk 0:02:50.9]} 19. Bxb4 {[%clk 0:01:34.9]} 19... Nxe6 {[%clk
0:02:50.8]} 20. Bc3 {[%clk 0:01:29.9]} 20... Nf4 {[%clk 0:02:50.1]} 21. Qe3
{[%clk 0:01:27]} 21... g5 {[%clk 0:02:40.3]} 22. Qc5 {[%clk 0:01:17.7]} 22...
Nd7 {[%clk 0:02:28.5]} 23. Qxa5 {[%clk 0:01:16]} 23... Nxh3+ {[%clk 0:02:22.5]}
24. Kh2 {[%clk 0:01:13.6]} 24... Nxf2 {[%clk 0:02:20.6]} 25. Qxc7+ {[%clk
0:01:00.6]} 25... Kxc7 {[%clk 0:02:20.2]} 26. Kg3 {[%clk 0:01:01.3]} 26... Rhf8
{[%clk 0:02:19.8]} 27. Re2 {[%clk 0:00:58]} 27... Nd1 {[%clk 0:02:17.4]} 28. Bb2
{[%clk 0:00:51.2]} 28... Nxb2 {[%clk 0:02:17]} 29. Nc3 {[%clk 0:00:47]} 29...
Nc5 {[%clk 0:02:15.2]} 30. Rb1 {[%clk 0:00:46]} 30... Nbd3 {[%clk 0:02:08.8]}
31. b4 {[%clk 0:00:40.2]} 31... Nf4 {[%clk 0:02:06.7]} 0-1

[Event "*** Titled Tuesday Blitz"]
[Site "Chess.com"]
[Date "2020.05.05"]
[Round "10"]
[White "binbin239"]
[Black "SHIVACalypso"]
[Result "1-0"]
[WhiteElo "2439"]
[BlackElo "2291"]
[TimeControl "180+1"]
[EndTime "11:56:48 PDT"]
[Termination "binbin239 won by resignation"]

1. d4 {[%clk 0:03:00.8]} 1... e6 {[%clk 0:02:59.6]} 2. c4 {[%clk 0:03:00.5]}
2... Nf6 {[%clk 0:02:59]} 3. Nf3 {[%clk 0:03:00.5]} 3... d5 {[%clk 0:02:55.3]}
4. g3 {[%clk 0:03:00.2]} 4... Be7 {[%clk 0:02:55.4]} 5. Bg2 {[%clk 0:03:00.6]}
5... O-O {[%clk 0:02:55.8]} 6. O-O {[%clk 0:03:00.8]} 6... dxc4 {[%clk
0:02:56.3]} 7. Ne5 {[%clk 0:02:59.8]} 7... Nc6 {[%clk 0:02:55.7]} 8. Nxc6 {[%clk
0:02:58.5]} 8... bxc6 {[%clk 0:02:56.6]} 9. Na3 {[%clk 0:02:58.8]} 9... Bxa3
{[%clk 0:02:52.5]} 10. bxa3 {[%clk 0:02:59.1]} 10... Rb8 {[%clk 0:02:49.6]} 11.
Qa4 {[%clk 0:02:57.9]} 11... Qxd4 {[%clk 0:02:25.8]} 12. Be3 {[%clk 0:02:57.7]}
12... Qd6 {[%clk 0:02:10.1]} 13. Qxa7 {[%clk 0:02:53.6]} 13... Rb7 {[%clk
0:02:05.6]} 14. Qa4 {[%clk 0:02:47.5]} 14... Nd5 {[%clk 0:01:49.1]} 15. Rfd1
{[%clk 0:02:47]} 15... Qe5 {[%clk 0:01:44.6]} 16. Bd4 {[%clk 0:02:36.6]} 16...
Qxe2 {[%clk 0:01:39.9]} 17. Qxc6 {[%clk 0:02:36.3]} 17... Rb8 {[%clk 0:01:18.8]}
18. Rac1 {[%clk 0:02:28.1]} 18... Bb7 {[%clk 0:01:15.6]} 19. Qxc4 {[%clk
0:02:26.7]} 19... Qxc4 {[%clk 0:01:08.4]} 20. Rxc4 {[%clk 0:02:26.6]} 20... Ba6
{[%clk 0:00:53.1]} 21. Rcc1 {[%clk 0:02:22.6]} 21... Rfd8 {[%clk 0:00:46.2]} 22.
Be5 {[%clk 0:02:21.1]} 22... Rd7 {[%clk 0:00:32.2]} 23. h3 {[%clk 0:02:05.7]}
23... f6 {[%clk 0:00:32.2]} 24. Bd4 {[%clk 0:02:00.9]} 24... Be2 {[%clk
0:00:29.5]} 25. Re1 {[%clk 0:02:00.1]} 25... Bc4 {[%clk 0:00:27.3]} 26. Rxc4
{[%clk 0:01:59.7]} 1-0

[Event "*** Titled Tuesday Blitz"]
[Site "Chess.com"]
[Date "2020.05.05"]
[Round "10"]
[White "SARGISMV"]
[Black "yoolund"]
[Result "1-0"]
[WhiteElo "2462"]
[BlackElo "2551"]
[TimeControl "180+1"]
[EndTime "11:56:51 PDT"]
[Termination "SARGISMV won by resignation"]

1. Nf3 {[%clk 0:03:00.9]} 1... Nf6 {[%clk 0:02:57.6]} 2. c4 {[%clk 0:03:00.9]}
2... b6 {[%clk 0:02:52]} 3. Nc3 {[%clk 0:03:01]} 3... Bb7 {[%clk 0:02:51.7]} 4.
g3 {[%clk 0:02:59.3]} 4... e6 {[%clk 0:02:50.8]} 5. Bg2 {[%clk 0:02:59.6]} 5...
Be7 {[%clk 0:02:50.4]} 6. O-O {[%clk 0:02:59.6]} 6... O-O {[%clk 0:02:50.2]} 7.
Re1 {[%clk 0:03:00.1]} 7... Ne4 {[%clk 0:02:49]} 8. Nxe4 {[%clk 0:03:00.4]} 8...
Bxe4 {[%clk 0:02:48.4]} 9. d3 {[%clk 0:03:01.3]} 9... Bb7 {[%clk 0:02:48.1]} 10.
e4 {[%clk 0:02:51.1]} 10... Bb4 {[%clk 0:02:46.1]} 11. Bd2 {[%clk 0:02:50.9]}
11... Bxd2 {[%clk 0:02:45.5]} 12. Qxd2 {[%clk 0:02:51.8]} 12... d6 {[%clk
0:02:44.6]} 13. d4 {[%clk 0:02:50.9]} 13... Nd7 {[%clk 0:02:44.3]} 14. Rad1
{[%clk 0:02:50.1]} 14... Qe7 {[%clk 0:02:43.6]} 15. h4 {[%clk 0:02:49.3]} 15...
a5 {[%clk 0:02:43.4]} 16. e5 {[%clk 0:02:41.1]} 16... Bxf3 {[%clk 0:02:39.5]}
17. Bxf3 {[%clk 0:02:33.3]} 17... Rad8 {[%clk 0:02:37.8]} 18. exd6 {[%clk
0:02:30.4]} 18... Qxd6 {[%clk 0:02:38]} 19. Qc3 {[%clk 0:02:24.5]} 19... Qb4
{[%clk 0:02:34.5]} 20. Qc2 {[%clk 0:02:14.5]} 20... Nf6 {[%clk 0:02:32]} 21. a3
{[%clk 0:02:13.4]} 21... Qd6 {[%clk 0:02:28]} 22. Qc3 {[%clk 0:02:13]} 22... c5
{[%clk 0:02:21.1]} 23. dxc5 {[%clk 0:02:08.4]} 23... Qxc5 {[%clk 0:02:22]} 24.
b4 {[%clk 0:02:08.9]} 24... Qc7 {[%clk 0:02:08.5]} 25. c5 {[%clk 0:02:02.1]}
25... Rxd1 {[%clk 0:01:54.4]} 26. Rxd1 {[%clk 0:02:01.5]} 26... Rc8 {[%clk
0:01:54.4]} 27. c6 {[%clk 0:01:59.1]} 27... axb4 {[%clk 0:01:41.3]} 28. axb4
{[%clk 0:01:58.9]} 28... h5 {[%clk 0:01:26.9]} 29. b5 {[%clk 0:01:54.2]} 29...
Ra8 {[%clk 0:01:22.4]} 30. Qd4 {[%clk 0:01:46.6]} 30... Kh7 {[%clk 0:01:12.4]}
31. Kg2 {[%clk 0:01:36.8]} 31... Ra5 {[%clk 0:01:09.1]} 32. Qd8 {[%clk
0:01:33.6]} 32... Qxd8 {[%clk 0:01:02.8]} 33. Rxd8 {[%clk 0:01:34.5]} 33... Rxb5
{[%clk 0:01:02.9]} 1-0

[Event "*** Titled Tuesday Blitz"]
[Site "Chess.com"]
[Date "2020.05.05"]
[Round "10"]
[White "nickmatta"]
[Black "crossingthestreet"]
[Result "1-0"]
[WhiteElo "2441"]
[BlackElo "2296"]
[TimeControl "180+1"]
[EndTime "11:57:01 PDT"]
[Termination "nickmatta won by resignation"]

1. d4 {[%clk 0:03:00.9]} 1... Nf6 {[%clk 0:02:58.3]} 2. c4 {[%clk 0:02:57.9]}
2... e6 {[%clk 0:02:55.4]} 3. Nc3 {[%clk 0:02:57.4]} 3... c5 {[%clk 0:02:55]} 4.
d5 {[%clk 0:02:57.3]} 4... d6 {[%clk 0:02:55.3]} 5. Nf3 {[%clk 0:02:56.9]} 5...
g6 {[%clk 0:02:55.2]} 6. e4 {[%clk 0:02:54.3]} 6... Bg7 {[%clk 0:02:55]} 7. Bd3
{[%clk 0:02:49]} 7... O-O {[%clk 0:02:55.2]} 8. h3 {[%clk 0:02:49.1]} 8... Na6
{[%clk 0:02:54.8]} 9. O-O {[%clk 0:02:48.9]} 9... Nc7 {[%clk 0:02:54]} 10. a4
{[%clk 0:02:46.3]} 10... e5 {[%clk 0:02:52.3]} 11. Be3 {[%clk 0:02:21]} 11...
Nh5 {[%clk 0:02:46.2]} 12. Re1 {[%clk 0:02:18.1]} 12... Nf4 {[%clk 0:02:45.5]}
13. Bf1 {[%clk 0:02:17.8]} 13... f5 {[%clk 0:02:39.4]} 14. Bxf4 {[%clk 0:02:18]}
14... exf4 {[%clk 0:02:38.6]} 15. e5 {[%clk 0:02:18.9]} 15... dxe5 {[%clk
0:02:28.1]} 16. Nxe5 {[%clk 0:02:18.5]} 16... Qd6 {[%clk 0:02:27.8]} 17. Nd3
{[%clk 0:02:09.1]} 17... Bd7 {[%clk 0:02:08.9]} 18. Qd2 {[%clk 0:02:06.4]} 18...
g5 {[%clk 0:02:07.6]} 19. Nb5 {[%clk 0:01:56.2]} 19... Nxb5 {[%clk 0:02:06.2]}
20. axb5 {[%clk 0:01:55.4]} 20... f3 {[%clk 0:02:01.8]} 21. Qxg5 {[%clk
0:01:53.7]} 21... fxg2 {[%clk 0:01:57.6]} 22. Bxg2 {[%clk 0:01:52.8]} 22... Rf6
{[%clk 0:01:57.3]} 23. Nf4 {[%clk 0:01:48]} 23... Kh8 {[%clk 0:01:54.2]} 24. Nh5
{[%clk 0:01:20.3]} 24... Rg6 {[%clk 0:01:49.6]} 25. Qe7 {[%clk 0:01:18]} 25...
Rxg2+ {[%clk 0:01:35.7]} 26. Kxg2 {[%clk 0:01:15.1]} 26... Qg6+ {[%clk
0:01:35.7]} 27. Ng3 {[%clk 0:01:14.7]} 27... f4 {[%clk 0:01:07.6]} 28. Qxd7
{[%clk 0:01:14]} 28... fxg3 {[%clk 0:01:07.6]} 29. Re6 {[%clk 0:01:03]} 29...
gxf2+ {[%clk 0:01:05.9]} 30. Rxg6 {[%clk 0:01:02.5]} 1-0

[Event "*** Titled Tuesday Blitz"]
[Site "Chess.com"]
[Date "2020.05.05"]
[Round "10"]
[White "smshk35"]
[Black "madalin18"]
[Result "1-0"]
[WhiteElo "2379"]
[BlackElo "2175"]
[TimeControl "180+1"]
[EndTime "11:57:05 PDT"]
[Termination "smshk35 won by checkmate"]

1. e4 {[%clk 0:03:00.9]} 1... c5 {[%clk 0:02:59.6]} 2. Nf3 {[%clk 0:03:00.3]}
2... d6 {[%clk 0:02:59.3]} 3. d4 {[%clk 0:02:59.7]} 3... cxd4 {[%clk 0:02:59.9]}
4. Nxd4 {[%clk 0:03:00.6]} 4... Nf6 {[%clk 0:02:59.7]} 5. Nc3 {[%clk 0:03:00.7]}
5... a6 {[%clk 0:03:00.1]} 6. Bc4 {[%clk 0:03:00.1]} 6... e6 {[%clk 0:02:59.4]}
7. Bb3 {[%clk 0:03:00.2]} 7... Be7 {[%clk 0:02:58.1]} 8. g4 {[%clk 0:02:59.3]}
8... O-O {[%clk 0:02:56.8]} 9. g5 {[%clk 0:02:58.6]} 9... Ne8 {[%clk 0:02:54]}
10. h4 {[%clk 0:02:58.5]} 10... Nc6 {[%clk 0:02:50.3]} 11. Be3 {[%clk
0:02:57.5]} 11... Bd7 {[%clk 0:02:31.6]} 12. Qd2 {[%clk 0:02:51.3]} 12... Rc8
{[%clk 0:02:28]} 13. O-O-O {[%clk 0:02:51]} 13... Ne5 {[%clk 0:02:27.3]} 14. f4
{[%clk 0:02:48.9]} 14... Nc4 {[%clk 0:02:26.8]} 15. Qe2 {[%clk 0:02:35.7]} 15...
Nxe3 {[%clk 0:02:24.4]} 16. Qxe3 {[%clk 0:02:36.6]} 16... b5 {[%clk 0:02:17.2]}
17. f5 {[%clk 0:02:34.8]} 17... b4 {[%clk 0:01:33.9]} 18. fxe6 {[%clk
0:02:22.6]} 18... bxc3 {[%clk 0:01:26.8]} 19. exd7 {[%clk 0:01:57.5]} 19...
cxb2+ {[%clk 0:01:26.3]} 20. Kb1 {[%clk 0:01:57.5]} 20... Qxd7 {[%clk
0:01:25.7]} 21. Nf5 {[%clk 0:01:55.5]} 21... Nc7 {[%clk 0:01:15.4]} 22. h5
{[%clk 0:01:52.5]} 22... Ne6 {[%clk 0:01:14.3]} 23. g6 {[%clk 0:01:49.8]} 23...
Kh8 {[%clk 0:01:02.4]} 24. h6 {[%clk 0:01:45.1]} 24... fxg6 {[%clk 0:00:59.4]}
25. hxg7+ {[%clk 0:01:45.4]} 25... Nxg7 {[%clk 0:00:59.1]} 26. Nxg7 {[%clk
0:01:43.4]} 26... Kxg7 {[%clk 0:00:57.5]} 27. Qh6+ {[%clk 0:01:42.7]} 27... Kf6
{[%clk 0:00:56.6]} 28. Rhf1+ {[%clk 0:01:35.6]} 28... Ke5 {[%clk 0:00:52.9]} 29.
Rd5+ {[%clk 0:01:35.4]} 29... Kxe4 {[%clk 0:00:52.7]} 30. Re1+ {[%clk
0:01:33.5]} 30... Kf3 {[%clk 0:00:51]} 31. Qe3+ {[%clk 0:01:33.1]} 31... Kg4
{[%clk 0:00:49.7]} 32. Rg1+ {[%clk 0:01:32.8]} 32... Kh4 {[%clk 0:00:48.2]} 33.
Qg3# {[%clk 0:01:32.7]} 1-0

[Event "*** Titled Tuesday Blitz"]
[Site "Chess.com"]
[Date "2020.05.05"]
[Round "10"]
[White "ItsCheckM8Mate"]
[Black "WhiteCapital80"]
[Result "0-1"]
[WhiteElo "2262"]
[BlackElo "2436"]
[TimeControl "180+1"]
[EndTime "11:57:09 PDT"]
[Termination "WhiteCapital80 won by resignation"]

1. e4 {[%clk 0:03:00.9]} 1... e6 {[%clk 0:02:59.1]} 2. d4 {[%clk 0:03:00.6]}
2... d5 {[%clk 0:02:58.6]} 3. exd5 {[%clk 0:03:00.7]} 3... exd5 {[%clk
0:02:58.5]} 4. c4 {[%clk 0:03:01.3]} 4... Nf6 {[%clk 0:02:56.9]} 5. Nc3 {[%clk
0:03:01.3]} 5... Be7 {[%clk 0:02:56.9]} 6. Bd3 {[%clk 0:03:01.4]} 6... dxc4
{[%clk 0:02:56.6]} 7. Bxc4 {[%clk 0:03:00.9]} 7... O-O {[%clk 0:02:57.1]} 8.
Nge2 {[%clk 0:03:00.8]} 8... Nbd7 {[%clk 0:02:56.6]} 9. O-O {[%clk 0:03:00.7]}
9... Nb6 {[%clk 0:02:55.7]} 10. Bb3 {[%clk 0:03:00.2]} 10... c6 {[%clk
0:02:55.8]} 11. Ng3 {[%clk 0:02:58.1]} 11... Nfd5 {[%clk 0:02:52.4]} 12. Nce4
{[%clk 0:02:57]} 12... Re8 {[%clk 0:02:44.8]} 13. Nc5 {[%clk 0:02:46.5]} 13...
Nd7 {[%clk 0:02:40.4]} 14. Nd3 {[%clk 0:02:31.5]} 14... N7f6 {[%clk 0:02:33.7]}
15. Ne5 {[%clk 0:02:31]} 15... Be6 {[%clk 0:02:32.2]} 16. f4 {[%clk 0:02:28.2]}
16... Nc7 {[%clk 0:02:24.7]} 17. Bc2 {[%clk 0:02:22]} 17... c5 {[%clk
0:02:18.6]} 18. f5 {[%clk 0:02:09]} 18... Bd5 {[%clk 0:02:18]} 19. Be3 {[%clk
0:02:06]} 19... Bd6 {[%clk 0:02:14.7]} 20. Bf4 {[%clk 0:01:38.1]} 20... cxd4
{[%clk 0:02:06.1]} 21. Qxd4 {[%clk 0:01:33.4]} 21... Nb5 {[%clk 0:02:05.3]} 22.
Qd3 {[%clk 0:00:49.8]} 22... Qb6+ {[%clk 0:01:59.8]} 23. Be3 {[%clk 0:00:45]}
23... Bc5 {[%clk 0:01:59.8]} 24. Nd7 {[%clk 0:00:32.6]} 24... Bxe3+ {[%clk
0:01:47.5]} 25. Kh1 {[%clk 0:00:28.1]} 25... Nxd7 {[%clk 0:01:46.9]} 26. Qxd5
{[%clk 0:00:27.1]} 26... Nf6 {[%clk 0:01:44.3]} 27. Qf3 {[%clk 0:00:25.1]} 27...
Nd4 {[%clk 0:01:43.4]} 28. Bd3 {[%clk 0:00:23.2]} 28... Nxf3 {[%clk 0:01:42.9]}
0-1

[Event "*** Titled Tuesday Blitz"]
[Site "Chess.com"]
[Date "2020.05.05"]
[Round "10"]
[White "silverback96"]
[Black "Piotrek1979"]
[Result "1-0"]
[WhiteElo "2141"]
[BlackElo "2272"]
[TimeControl "180+1"]
[EndTime "11:57:16 PDT"]
[Termination "silverback96 won by resignation"]

1. Nf3 {[%clk 0:03:00.9]} 1... Nf6 {[%clk 0:02:57.7]} 2. g3 {[%clk 0:03:01.8]}
2... g6 {[%clk 0:02:57.9]} 3. b3 {[%clk 0:03:00]} 3... Bg7 {[%clk 0:02:58.8]} 4.
Bb2 {[%clk 0:03:00.9]} 4... O-O {[%clk 0:02:58.1]} 5. Bg2 {[%clk 0:03:01.8]}
5... d6 {[%clk 0:02:57.9]} 6. O-O {[%clk 0:03:02.4]} 6... c5 {[%clk 0:02:56.5]}
7. c4 {[%clk 0:03:01.9]} 7... Nc6 {[%clk 0:02:56.1]} 8. d4 {[%clk 0:03:02.4]}
8... Ne4 {[%clk 0:02:56]} 9. Nc3 {[%clk 0:02:49.5]} 9... f5 {[%clk 0:02:19.8]}
10. Rc1 {[%clk 0:02:45.8]} 10... Qa5 {[%clk 0:01:43.3]} 11. e3 {[%clk
0:02:22.7]} 11... Bd7 {[%clk 0:01:22.2]} 12. Nxe4 {[%clk 0:02:17.9]} 12... fxe4
{[%clk 0:01:23.1]} 13. Ng5 {[%clk 0:02:18.8]} 13... cxd4 {[%clk 0:01:23.1]} 14.
exd4 {[%clk 0:02:19.7]} 14... Qxg5 {[%clk 0:01:22]} 15. Bxe4 {[%clk 0:02:19.8]}
15... Bh3 {[%clk 0:01:16.7]} 16. Re1 {[%clk 0:02:19.5]} 16... Kh8 {[%clk
0:01:03]} 17. Qe2 {[%clk 0:02:17.6]} 17... Rf7 {[%clk 0:00:52.5]} 18. f4 {[%clk
0:02:15.6]} 18... Rxf4 {[%clk 0:00:41.1]} 19. Bg2 {[%clk 0:02:15.4]} 19... Nxd4
{[%clk 0:00:31.2]} 20. Qe3 {[%clk 0:02:01.1]} 20... Rg4 {[%clk 0:00:17]} 21.
Bxh3 {[%clk 0:01:59.2]} 21... Ne2+ {[%clk 0:00:09.1]} 22. Qxe2 {[%clk
0:01:57.9]} 22... Rxg3+ {[%clk 0:00:08.7]} 23. hxg3 {[%clk 0:01:57.2]} 23...
Qxg3+ {[%clk 0:00:09.6]} 24. Bg2 {[%clk 0:01:57.3]} 24... Bxb2 {[%clk
0:00:08.4]} 25. Qxb2+ {[%clk 0:01:57.7]} 25... e5 {[%clk 0:00:07.5]} 26. Rf1
{[%clk 0:01:56.1]} 26... Qe3+ {[%clk 0:00:07.1]} 27. Qf2 {[%clk 0:01:55.3]}
27... Qg5 {[%clk 0:00:05.2]} 28. Qf6+ {[%clk 0:01:55]} 28... Qxf6 {[%clk
0:00:05.4]} 29. Rxf6 {[%clk 0:01:55.9]} 1-0

[Event "*** Titled Tuesday Blitz"]
[Site "Chess.com"]
[Date "2020.05.05"]
[Round "10"]
[White "TregubovP"]
[Black "SamuelGhimpu2003"]
[Result "1/2-1/2"]
[WhiteElo "2520"]
[BlackElo "2681"]
[TimeControl "180+1"]
[EndTime "11:57:21 PDT"]
[Termination "Game drawn by agreement"]

1. e4 {[%clk 0:03:00.9]} 1... e6 {[%clk 0:02:59.7]} 2. d4 {[%clk 0:03:00.7]}
2... d5 {[%clk 0:03:00.6]} 3. exd5 {[%clk 0:03:01]} 3... exd5 {[%clk 0:03:01.5]}
4. Nf3 {[%clk 0:03:01]} 4... Nf6 {[%clk 0:03:01.9]} 5. Bd3 {[%clk 0:02:59.5]}
5... Bd6 {[%clk 0:03:01.9]} 6. Qe2+ {[%clk 0:02:59.8]} 6... Qe7 {[%clk
0:03:01.8]} 7. Qxe7+ {[%clk 0:02:59.8]} 7... Kxe7 {[%clk 0:03:02.7]} 8. O-O
{[%clk 0:02:58]} 8... Re8 {[%clk 0:03:03.1]} 9. Re1+ {[%clk 0:02:45.3]} 9... Kf8
{[%clk 0:03:02]} 10. Rxe8+ {[%clk 0:02:45.3]} 10... Nxe8 {[%clk 0:03:00.7]} 11.
Nbd2 {[%clk 0:02:32.6]} 11... Nc6 {[%clk 0:02:44.9]} 12. c3 {[%clk 0:02:31.9]}
12... Nf6 {[%clk 0:02:41]} 13. b4 {[%clk 0:02:31.3]} 13... Ne7 {[%clk
0:02:38.4]} 14. Nb3 {[%clk 0:02:27.4]} 14... Bf5 {[%clk 0:02:37.4]} 15. Bxf5
{[%clk 0:02:25]} 15... Nxf5 {[%clk 0:02:38.3]} 16. Bd2 {[%clk 0:02:13.6]} 16...
h5 {[%clk 0:02:30.2]} 17. a4 {[%clk 0:02:12.4]} 17... g6 {[%clk 0:02:22.2]} 18.
a5 {[%clk 0:02:11.9]} 18... a6 {[%clk 0:02:19.9]} 19. Nc5 {[%clk 0:02:09.4]}
19... Bxc5 {[%clk 0:02:12.7]} 20. bxc5 {[%clk 0:02:09.3]} 20... Ne4 {[%clk
0:02:09.6]} 21. Rb1 {[%clk 0:02:05]} 21... Rb8 {[%clk 0:02:08.4]} 22. Rb3 {[%clk
0:01:51.9]} 22... Nxd2 {[%clk 0:01:37.9]} 23. Nxd2 {[%clk 0:01:51.3]} 23... c6
{[%clk 0:01:38.1]} 24. Nf3 {[%clk 0:01:42.3]} 24... f6 {[%clk 0:01:37.9]} 25.
Kf1 {[%clk 0:01:41.7]} 25... Kf7 {[%clk 0:01:33.5]} 26. h4 {[%clk 0:01:41.6]}
26... Ke8 {[%clk 0:01:26.6]} 27. Ke2 {[%clk 0:01:28.9]} 27... Ng7 {[%clk
0:01:26]} 28. Kd3 {[%clk 0:01:27.4]} 28... Ne6 {[%clk 0:01:25.6]} 29. g3 {[%clk
0:01:27.8]} 29... Nc7 {[%clk 0:01:21.1]} 30. Rb1 {[%clk 0:01:24.8]} 30... Nb5
{[%clk 0:01:20.5]} 31. Rg1 {[%clk 0:01:16.9]} 31... Kf7 {[%clk 0:01:14.5]} 32.
Ne1 {[%clk 0:01:05.6]} 32... Re8 {[%clk 0:01:14]} 33. Ng2 {[%clk 0:01:05.7]}
33... Na3 {[%clk 0:01:09.9]} 34. Ne3 {[%clk 0:01:02.2]} 1/2-1/2

[Event "*** Titled Tuesday Blitz"]
[Site "Chess.com"]
[Date "2020.05.05"]
[Round "10"]
[White "SaySpade4VIP"]
[Black "keepitcool9499"]
[Result "1-0"]
[WhiteElo "2613"]
[BlackElo "2465"]
[TimeControl "180+1"]
[EndTime "11:57:23 PDT"]
[Termination "SaySpade4VIP won by checkmate"]

1. d4 {[%clk 0:02:56.7]} 1... Nf6 {[%clk 0:02:58.8]} 2. Bg5 {[%clk 0:02:50.8]}
2... e6 {[%clk 0:02:58]} 3. Nd2 {[%clk 0:02:47.1]} 3... Be7 {[%clk 0:02:57]} 4.
e3 {[%clk 0:02:44.6]} 4... d5 {[%clk 0:02:56]} 5. Bd3 {[%clk 0:02:44.1]} 5... c5
{[%clk 0:02:51.8]} 6. c3 {[%clk 0:02:43.3]} 6... Nc6 {[%clk 0:02:51.2]} 7. f4
{[%clk 0:02:39.8]} 7... Nd7 {[%clk 0:02:45.6]} 8. Bxe7 {[%clk 0:02:37.1]} 8...
Qxe7 {[%clk 0:02:46.5]} 9. Ngf3 {[%clk 0:02:37.7]} 9... f5 {[%clk 0:02:46.7]}
10. Ne5 {[%clk 0:02:28.4]} 10... Nf6 {[%clk 0:02:46.2]} 11. O-O {[%clk
0:02:06.8]} 11... O-O {[%clk 0:02:44.7]} 12. Kh1 {[%clk 0:01:58.4]} 12... Bd7
{[%clk 0:02:39.4]} 13. Qe2 {[%clk 0:01:58.1]} 13... a6 {[%clk 0:02:33]} 14. Ndf3
{[%clk 0:01:47.7]} 14... Kh8 {[%clk 0:02:27.3]} 15. Rg1 {[%clk 0:01:35.5]} 15...
Ng4 {[%clk 0:02:15.3]} 16. Nxg4 {[%clk 0:01:19.7]} 16... fxg4 {[%clk 0:02:16.2]}
17. Ne5 {[%clk 0:01:20.2]} 17... Nxe5 {[%clk 0:02:15.3]} 18. dxe5 {[%clk
0:01:21.1]} 18... Qh4 {[%clk 0:02:13.3]} 19. g3 {[%clk 0:01:18.1]} 19... Qh5
{[%clk 0:02:11.3]} 20. Rgf1 {[%clk 0:01:14.5]} 20... g5 {[%clk 0:02:10.6]} 21.
Rf2 {[%clk 0:01:08.7]} 21... gxf4 {[%clk 0:02:09.4]} 22. exf4 {[%clk 0:01:09.6]}
22... Be8 {[%clk 0:02:06.4]} 23. Raf1 {[%clk 0:01:07.3]} 23... Bg6 {[%clk
0:02:06.5]} 24. f5 {[%clk 0:00:57.9]} 24... Bxf5 {[%clk 0:02:04.4]} 25. Bxf5
{[%clk 0:00:56.6]} 25... Rxf5 {[%clk 0:02:05.3]} 26. Rxf5 {[%clk 0:00:56.9]}
26... exf5 {[%clk 0:02:06.2]} 27. e6 {[%clk 0:00:57.6]} 27... Re8 {[%clk
0:01:58.1]} 28. Qe5+ {[%clk 0:00:53.6]} 28... Kg8 {[%clk 0:01:57.5]} 29. Rxf5
{[%clk 0:00:54.5]} 29... Qh6 {[%clk 0:01:54]} 30. Rg5+ {[%clk 0:00:38]} 30...
Kf8 {[%clk 0:01:28.7]} 31. Qf4+ {[%clk 0:00:33.6]} 31... Ke7 {[%clk 0:01:23.4]}
32. Qf7+ {[%clk 0:00:33.8]} 32... Kd6 {[%clk 0:01:23.6]} 33. Qd7# {[%clk
0:00:34.7]} 1-0